[Event "Nakhchivan Open 2024"]
[Site "Nakhchivan"]
[Date "2024.01.12"]
[Round "5.2"]
[White "Baghirov, Mahammad"]
[Black "Kul, Ozdemir Efe"]
[Result "1-0"]
[ECO "B30"]
[WhiteElo "1621"]
[BlackElo "2223"]
[Annotator "RC"]
[PlyCount "157"]
[EventDate "2024.01.11"]
[EventType "swiss"]
[EventCountry "AZE"]
[SourceTitle "playchess.com"]
[Source "ChessBase"]
[SourceQuality "1"]
[TimeControl "5400+30"]

1. e4 {[%emt 0:00:32]} c5 {[%emt 0:00:42]} 2. Nf3 {[%emt 0:00:12]} Nc6 {[%emt 0:00:11]} 3. b3 {[%emt 0:00:14]} e5 {[%emt 0:00:19]} 4. Bb2 {[%emt 0:00:33]} d6 {[%emt 0:00:18]} 5. Nc3 {[%emt 0:00:55]} g6 {[%emt 0:00:20]} 6. Nd5 {[%emt 0:02:01]} Bg7 {[%emt 0:00:28]} 7. c4 {[%emt 0:00:47]} Nge7 {[%emt 0:00:18]} 8. d3 {[%emt 0:00:33]} h6 {[%emt 0:00:24]} 9. Be2 {[%emt 0:00:30]} O-O {[%emt 0:00:12]} 10. Qd2 {[%emt 0:01:38]} a6 {[%emt 0:00:27]} 11. O-O {[%emt 0:01:43]} f5 {[%emt 0:00:20]} 12. a3 {[%emt 0:03:26]} f4 {[%emt 0:05:35]} 13. b4 {[%emt 0:01:09]} b6 {[%emt 0:00:36]} 14. Rab1 {[%emt 0:00:47]} g5 {[%emt 0:01:37]} 15. h3 {[%emt 0:00:12]} Nxd5 {[%emt 0:01:49]} 16. cxd5 {[%emt 0:02:44]} Nb8 {[%emt 0:04:23]} 17. bxc5 {[%emt 0:02:25]} bxc5 {[%emt 0:00:07]} 18. Nh2 {[%emt 0:00:14]} Nd7 {[%emt 0:00:31]} 19. Bc3 {[%emt 0:01:55]} Nf6 {[%emt 0:00:46]} 20. Ba5 {[%emt 0:00:31]} Qe7 {[%emt 0:00:52]} 21. Rb6 {[%emt 0:01:17]} Rf7 {[%emt 0:01:42]} 22. Rfb1 {[%emt 0:01:47]} Bf8 {[%emt 0:00:17]} 23. Rb8 {[%emt 0:00:45]} Qa7 {[%emt 0:04:36]} 24. Qb2 {[%emt 0:03:38]} Rxb8 {[%emt 0:07:53]} 25. Qxb8 {[%emt 0:00:52]} Qxb8 {[%emt 0:03:33]} 26. Rxb8 {[%emt 0:00:06]} Bd7 {[%emt 0:01:06]} 27. Bd8 {[%emt 0:01:34]} Kh7 {[%emt 0:12:45]} 28. Bxf6 {[%emt 0:00:57]} Rxf6 {[%emt 0:00:09]} 29. Rb7 {[%emt 0:00:03]} Rf7 {[%emt 0:00:15]} 30. Bg4 {[%emt 0:00:30]} Be8 {[%emt 0:00:56]} 31. Rb8 {[%emt 0:00:21]} Re7 {[%emt 0:02:52]} 32. Rd8 {[%emt 0:02:16]} h5 {[%emt 0:01:35]} 33. Bf5+ {[%emt 0:01:40]} Kg7 {[%emt 0:00:29]} 34. Nf3 {[%emt 0:00:10]} Bb5 {[%emt 0:04:48]} 35. Nxg5 {[%emt 0:00:23]} Re8 {[%emt 0:00:33]} 36. Ne6+ {[%emt 0:00:28]} Kg8 {[%emt 0:01:30]} 37. Rxe8 {[%emt 0:01:26]} Bxe8 {[%emt 0:00:03]} 38. Nc7 {[%emt 0:03:42]} Ba4 {[%emt 0:05:37]} 39. Bc8 {[%emt 0:01:23]} a5 {[%emt 0:02:04]} 40. Ba6 {[%emt 0:00:07]} Be7 {[%emt 0:01:45]} 41. Bb5 {[%emt 0:00:56]} Bd1 {[%emt 0:01:38]} 42. f3 {[%emt 0:01:32]} Kf7 {[%emt 0:05:49]} 43. a4 {[%emt 0:01:50]} Bd8 {[%emt 0:00:32]} 44. Ne8 {[%emt 0:00:28]} Be7 {[%emt 0:02:08]} 45. Kf1 {[%emt 0:00:08]} Bf8 {[%emt 0:04:08]} 46. Ke1 {[%emt 0:00:24]} Bb3 {[%emt 0:00:11]} 47. Kd2 {[%emt 0:00:54]} Ke7 {[%emt 0:01:59]} 48. Nc7 {[%emt 0:00:22]} Bg7 {[%emt 0:00:34]} 49. Na6 {[%emt 0:01:19]} Kd8 {[%emt 0:01:10]} 50. Nb8 {[%emt 0:00:57]} Kc7 {[%emt 0:00:22]} 51. Nc6 {[%emt 0:00:02]} Kb6 {[%emt 0:00:21]} 52. Ne7 {[%emt 0:00:39]} Kc7 {[%emt 0:04:18]} 53. Nc6 {[%emt 0:01:23]} Kb6 {[%emt 0:00:14]} 54. Nd8 {[%emt 0:00:08]} Bf6 {[%emt 0:00:55]} 55. Ne6 {[%emt 0:01:14]} Kb7 {[%emt 0:02:00]} 56. h4 {[%emt 0:01:37]} Bxh4 {[%emt 0:01:43]} 57. Ng7 {[%emt 0:00:02]} Bg5 {[%emt 0:03:50]} 58. Nxh5 {[%emt 0:00:24]} Kb6 {[%emt 0:00:38]} 59. Ng7 {[%emt 0:00:14]} Bf6 {[%emt 0:01:37]} 60. Nf5 {[%emt 0:00:22]} Kc7 {[%emt 0:00:13]} 61. Nh6 {[%emt 0:02:47]} Bg5 {[%emt 0:00:54]} 62. Ng4 {[%emt 0:00:20]} Kd8 {[%emt 0:00:16]} 63. Nh2 {[%emt 0:00:22]} Bh4 {[%emt 0:01:08]} 64. Nf1 {[%emt 0:00:02]} Ke7 {[%emt 0:02:00]} 65. Ke2 {[%emt 0:00:21]} Kd8 {[%emt 0:04:17]} 66. Nd2 {[%emt 0:00:08]} Ba2 {[%emt 0:00:01]} 67. Bc4 {[%emt 0:00:18]} Bxc4 {[%emt 0:00:59]} 68. Nxc4 {[%emt 0:00:02]} Kc7 {[%emt 0:00:21]} 69. Nxa5 {[%emt 0:00:01]} Be7 {[%emt 0:00:34]} 70. Nc4 {[%emt 0:00:06]} Bh4 {[%emt 0:00:34]} 71. Kd2 {[%emt 0:00:40]} Be7 {[%emt 0:00:23]} 72. Kc3 {[%emt 0:00:29]} Kb7 {[%emt 0:01:16]} 73. Kd2 {[%emt 0:01:25]} Kc7 {[%emt 0:00:35]} 74. Ke1 {[%emt 0:00:01]} Bh4+ {[%emt 0:01:43]} 75. Kf1 {[%emt 0:00:01]} Kd7 {[%emt 0:00:30]} 76. a5 {[%emt 0:00:44]} Be7 {[%emt 0:00:32]} 77. a6 {[%emt 0:00:12]} Kc7 {[%emt 0:00:14]} 78. Na5 {[%emt 0:00:18]} Kb6 {[%emt 0:00:44]} 79. a7 {[%emt 0:00:02]} 1-0

[Event "Nakhchivan Open 2024"]
[Site "Nakhchivan"]
[Date "2024.01.12"]
[Round "5.3"]
[White "Aliyev, Aykhan"]
[Black "Israilov, Agil"]
[Result "1/2-1/2"]
[ECO "B42"]
[WhiteElo "1962"]
[BlackElo "2114"]
[Annotator "TA"]
[PlyCount "42"]
[EventDate "2024.01.11"]
[EventType "swiss"]
[EventCountry "AZE"]
[SourceTitle "playchess.com"]
[Source "ChessBase"]
[SourceQuality "1"]
[TimeControl "5400+30"]

{[%evp 19,42,37,65,29,51,25,44,-7,0,-14,0,-10,0,-14,-16,-11,-10,-3,0,0,0,-14,0,0,0]} 1. e4 {[%emt 0:02:41]} c5 {[%emt 0:00:05]} 2. Nf3 {[%emt 0:00:04]} e6 {[%emt 0:00:05]} 3. d4 {[%emt 0:00:04]} cxd4 {[%emt 0:00:05]} 4. Nxd4 {[%emt 0:00:04]} a6 {[%emt 0:00:05]} 5. Bd3 {[%emt 0:00:15]} Nf6 {[%emt 0:00:14]} 6. O-O {[%emt 0:00:48]} d6 {[%emt 0:00:05]} 7. c4 {[%emt 0:01:36]} g6 {[%emt 0:00:06]} 8. Nc3 {[%emt 0:02:36]} Bg7 {[%emt 0:00:07]} 9. Qe2 {[%emt 0:13:24]} O-O {[%emt 0:00:54]} 10. Be3 {[%emt 0:00:48][%cal Bc1e3,Be3g1,Bg1d4][%mdl 32]} Qc7 11. Rae1 {[%emt 0:02:01] White is more active.} Nbd7 {[%emt 0:01:05][%cal Od6d5]} 12. Kh1 {[%emt 0:02:36]} b6 {[%emt 0:02:47]} 13. f4 {[%emt 0:01:30]} (13. f3 $14) 13... Bb7 $11 {[%emt 0:00:42] The position is equal.} 14. Bg1 {[%emt 0:00:11]} Nc5 {[%emt 0:02:34]} 15. Bb1 {[%emt 0:00:17]} Rac8 {[%emt 0:00:48]} 16. Nf3 {[%emt 0:13:03]} Rfe8 {[%emt 0:08:38]} 17. Bd4 {[%emt 0:07:53]} Ncd7 {[%emt 0:12:42]} 18. Bd3 {[%emt 0:03:08]} Nc5 {[%emt 0:08:22]} 19. Bb1 {[%emt 0:00:10]} Ncd7 {[%emt 0:00:06]} 20. Bd3 {[%emt 0:00:06]} Nc5 {[%emt 0:00:05]} 21. Bb1 Ncd7 {Weighted Error Value: White=0.13 (very precise) /Black=0.09 (flawless) .  Mistake:       	White=1     	---        Inaccurate:     	White=1     	---        OK:         	White=6     	Black=5} 1/2-1/2

[Event "Nakhchivan Open 2024"]
[Site "Nakhchivan"]
[Date "2024.01.12"]
[Round "5.4"]
[White "Azimov, Yasin"]
[Black "Ahmadov, Fariz"]
[Result "0-1"]
[ECO "A10"]
[WhiteElo "1608"]
[BlackElo "2193"]
[Annotator "TA"]
[PlyCount "74"]
[EventDate "2024.01.11"]
[EventType "swiss"]
[EventCountry "AZE"]
[SourceTitle "playchess.com"]
[Source "ChessBase"]
[SourceQuality "1"]
[TimeControl "5400+30"]

{[%evp 12,74,52,39,55,52,74,61,71,40,47,54,70,65,70,37,47,35,20,41,54,54,92,105,103,113,186,127,116,118,134,112,140,17,112,102,112,80,94,115,107,-57,-41,-50,84,51,44,44,38,36,58,0,0,-419,-91,-80,-66,-87,-55,-70,-55,-82,-71,-154,-145]} 1. c4 {[%emt 0:00:03]} d6 {[%emt 0:01:04]} 2. g3 {[%emt 0:01:20]} e5 {[%emt 0:00:32]} 3. Bg2 {[%emt 0:00:10]} Nc6 {[%emt 0:01:43]} 4. Nc3 {[%emt 0:00:27]} Nf6 {[%emt 0:00:42]} 5. e3 {[%emt 0:00:29][%cal Be2e3,Be3e4][%mdl 32]} Be7 {[%emt 0:02:57]} 6. Nge2 {[%emt 0:01:54]} O-O {[%emt 0:00:05]} 7. O-O {[%emt 0:00:07]} Bg4 {[%emt 0:02:30]} 8. h3 {[%emt 0:02:58]} Bf5 {[%emt 0:01:00]} 9. d3 {[%emt 0:02:07]} h6 {[%emt 0:01:30] Weiß steht etwas besser.} 10. e4 {[%emt 0:05:59]} Bd7 {[%emt 0:02:54]} 11. f4 {[%emt 0:00:55]} exf4 {[%emt 0:00:28]} 12. gxf4 {[%emt 0:00:39]} Nh7 {[%emt 0:01:41]} 13. Nd5 {[%emt 0:02:45]} Bh4 {[%emt 0:01:03]} 14. Bd2 {[%emt 0:05:43]} Ne7 {[%emt 0:01:00]} 15. Ne3 {[%emt 0:06:36]} c6 {[%emt 0:01:45][%cal Bc7c6,Bc6d5][%mdl 32]} 16. d4 {[%emt 0:12:22]} d5 {[%emt 0:02:44]} 17. cxd5 {[%emt 0:06:59]} (17. exd5 cxd5 18. cxd5 Nf5 $15) 17... cxd5 {[%emt 0:00:15]} 18. e5 {[%emt 0:00:32][%cal Od2b4]} (18. exd5 Re8 $15) (18. Nxd5 Nxd5 19. exd5 Rc8 $15) 18... Nf5 {[%emt 0:01:16]} (18... Qb6 $16) 19. Nxf5 {[%emt 0:03:23]} (19. Nxd5 Be6 20. Ne3 Nxd4 $16) ({Günstiger ist} 19. Kh2 $1 $18) 19... Bxf5 $16 {[%emt 0:00:10]} 20. Bb4 {[%emt 0:02:32]} Re8 {[%emt 0:01:13]} 21. Nc3 {[%emt 0:06:47]} a5 {[%emt 0:04:04]} 22. Bd6 {[%emt 0:03:38]} (22. Bc5 $16) 22... Re6 {[%emt 0:02:19]} (22... Nf6 $11) 23. Qh5 {[%emt 0:04:17]} (23. Bxd5 $6 Rxd6 24. exd6 Nf6 $11) 23... Bg6 {[%emt 0:00:17]} 24. Qg4 {[%emt 0:06:56][%cal Of4f5] Droht stark f5!} Bd3 {[%emt 0:03:50]} 25. Rfd1 {[%emt 0:13:07][%cal Bf1d1,Bd1d2,Bd2f2][%mdl 32]} Rg6 {[%emt 0:04:06]} 26. Qf3 {[%emt 0:00:53]} ({Besser ist} 26. Qh5 $16 Be4 27. Nxe4 dxe4 28. Rac1) 26... Bf5 $15 {[%emt 0:01:20]} 27. Nxd5 {[%emt 0:03:04]} Nf8 {[%emt 0:06:53]} (27... Rg3 $1 $15 {bleibt weiter vorne.} 28. Ne7+ Kh8 29. Nxf5 Rxf3 30. Bxf3 Bg5) 28. Ne3 {[%emt 0:02:10]} Rg3 {[%emt 0:00:12]} 29. Qxb7 {[%emt 0:00:07]} Bxh3 {[%emt 0:01:01]} 30. Rd2 {[%emt 0:00:26]} Ne6 {[%emt 0:03:37][%cal Oh3g2]} 31. Kh2 {[%emt 0:00:37]} (31. Rc1 $1 $14) 31... Nxf4 $11 {[%emt 0:01:32] ...Rc8 wäre nun fies.} 32. Be7 $2 {[%emt 0:00:33][%mdl 8192]} (32. e6 $11 {und Weiss muss sich keine Sorgen machen.} Qxd6 33. Qxa8+ Kh7 34. exf7 Bxg2 (34... Rxe3 $2 35. Qg8+ Kg6 36. f8=Q $18) (34... Rxg2+ $2 35. Nxg2 Nxg2+ 36. Kh1 $18) 35. Rxg2 (35. f8=Q $2 Rh3+ 36. Kg1 Rh1#) (35. Qg8+ Kg6 $11) 35... Rxg2+ 36. Nxg2 Ne2+ 37. Kh1 Ng3+ 38. Kg1 Ne2+ 39. Kf1 (39. Kh1 Ng3+ 40. Kg1 Ne2+ 41. Kh1 $11) 39... Ng3+ 40. Kg1 Ne2+ 41. Kf1 (41. Kh1 Ng3+ 42. Kg1 $11) 41... Ng3+ 42. Kg1) 32... Bxe7 $2 {[%emt 0:01:22]} (32... Bxg2 $19 {und Schwarz behält klar die Oberhand.} 33. Nxg2 Rxg2+ (33... Qxe7 $2 {ist das falsche Schlagen.} 34. Qxa8+ Kh7 35. Nxf4 $18) (33... Bxe7 34. Kxg3 Rb8 35. Qe4 $14) 34. Qxg2 Bxe7 (34... Qxe7 $2 {zu gefräßig.} 35. Qxa8+ Kh7 36. Qe4+ g6 37. Qxf4 $18)) 33. Kxg3 $17 {[%emt 0:00:08] [#]} Nxg2 $1 34. Nxg2 {[%emt 0:00:32]} Bg5 {[%emt 0:03:17]} 35. Rf2 {[%emt 0:00:32]} Be6 {[%emt 0:00:07][%cal Oa8b8][%mdl 1024] Droht ...Rb8! und aus. Schwarz hat Kompensation. Sehr scharf!} 36. Qe4 {[%emt 0:01:30]} Bd5 {[%emt 0:00:18] Das Läuferpaar ist gut.} 37. Qg4 {[%emt 0:00:06] [#]} (37. Qf5 $142) 37... Ra6 $1 {[%emt 0:01:41] Schwarz hat seine Chance genutzt.   Gewichteter Fehlerwert: Weiß=0.39/Schwarz=0.30.  Verlustzug:     	Weiß=1     	---        Gewinn verpasst:   	---       	Schwarz=1     Fehler:       	Weiß=5     	Schwarz=3     Ungenau:       	Weiß=3     	Schwarz=1     OK:         	Weiß=13    	Schwarz=10    Bester:       	---       	Schwarz=2     Stark:        	---       	Schwarz=2} 0-1

[Event "Nakhchivan Open 2024"]
[Site "Nakhchivan"]
[Date "2024.01.12"]
[Round "5.5"]
[White "Mamedjarova, Zeinab"]
[Black "Hasanli, Rza"]
[Result "1/2-1/2"]
[ECO "D05"]
[WhiteElo "2173"]
[BlackElo "1622"]
[Annotator "TA"]
[PlyCount "67"]
[EventDate "2024.01.11"]
[EventType "swiss"]
[EventCountry "AZE"]
[SourceTitle "playchess.com"]
[Source "ChessBase"]
[SourceQuality "1"]
[TimeControl "5400+30"]

{[%evp 12,67,26,23,15,8,0,0,0,-2,1,-15,0,0,-8,-24,-23,-24,-22,-33,-13,-29,-17,-21,-20,-20,-20,-24,-20,-31,33,34,30,33,22,25,24,20,20,14,23,25,17,14,30,0,26,20,34,28,128,29,45,22,66,89,147,103]} 1. d4 {[%emt 0:00:04]} d5 {[%emt 0:00:10]} 2. Nf3 {[%emt 0:00:24]} Nf6 {[%emt 0:00:30]} 3. e3 {[%emt 0:00:40]} e6 {[%emt 0:00:13]} 4. Bd3 {[%emt 0:00:05]} c5 {[%emt 0:00:07]} 5. O-O {[%emt 0:00:10]} Nc6 {[%emt 0:00:07]} 6. b3 {[%emt 0:00:47]} Bd6 {[%emt 0:00:22]} 7. Bb2 {[%emt 0:00:20]} b6 {[%emt 0:00:11]} 8. Nbd2 {[%emt 0:00:29]} Bb7 {[%emt 0:00:27]} 9. Ne5 {[%emt 0:05:07]} O-O {[%emt 0:00:39] The position is equal.} 10. a3 {[%emt 0:00:33]} Ne7 {[%emt 0:00:32]} 11. Qe2 {[%emt 0:07:55]} Ne4 {[%emt 0:01:37]} 12. Bxe4 {[%emt 0:11:15]} dxe4 {[%emt 0:00:10]} 13. dxc5 {[%emt 0:00:10]} Bxc5 {[%emt 0:06:03]} 14. Rfd1 {[%emt 0:07:04][%cal Od2e4] [#] Hoping for Nxe4!} Qc7 $1 {[%emt 0:00:44]} 15. Qh5 {[%emt 0:29:38]} Ng6 {[%emt 0:03:55]} (15... Rad8 {with more complications.} 16. b4 Bd6 17. Nec4 Ng6) 16. Nxg6 {[%emt 0:08:58]} hxg6 {[%emt 0:00:39]} 17. Qe2 {[%emt 0:00:39]} Bd6 {[%emt 0:01:11]} 18. Nf1 {[%emt 0:00:15]} Rfd8 {[%emt 0:01:20]} 19. a4 {[%emt 0:02:53]} a6 {[%emt 0:17:27]} 20. h3 {[%emt 0:01:51]} Be5 {[%emt 0:01:24]} ({Black should play} 20... f6 $15) 21. Bxe5 {[%emt 0:01:01]} Qxe5 {[%emt 0:00:13]} 22. Rxd8+ {[%emt 0:00:08]} Rxd8 {[%emt 0:00:14]} 23. Rd1 {[%emt 0:00:02]} Rd6 {[%emt 0:07:37]} 24. Rxd6 {[%emt 0:00:57]} Qxd6 $11 {[%emt 0:00:08][%mdl 4096] Endgame. KQB-KQN} 25. Qd2 {[%emt 0:00:23]} Qc7 {[%emt 0:02:09]} 26. Ng3 {[%emt 0:01:00]} g5 {[%emt 0:04:49]} 27. Ne2 {[%emt 0:01:03]} f5 {[%emt 0:01:27]} 28. Qc3 {[%emt 0:00:55]} Qd6 {[%emt 0:01:04]} 29. Qd4 {[%emt 0:02:50]} Qc7 {[%emt 0:00:29]} 30. c4 {[%emt 0:00:21][%cal Bc2c4,Bc4c5][%mdl 32]} Bc6 {[%emt 0:06:20] [#]} (30... Kf7 $11) 31. Nc3 {[%emt 0:04:21]} ({Better is} 31. a5 $1 $16 {[%cal Ra5b6]} bxa5 32. Qc5) 31... Bb7 {[%emt 0:03:04]} 32. Nd1 {[%emt 0:07:38]} a5 {[%emt 0:04:15]} 33. Nc3 {[%emt 0:00:24] Threatens to win with Nb5.} Bc6 {[%emt 0:03:32]} (33... e5 $142 34. Qd2 Qe7) 34. c5 {Weighted Error Value: White=0.08 (flawless) /Black=0.19 (very precise) .  Mistake:       	White=1     	Black=3      Inaccurate:     	White=1     	Black=2      OK:         	White=10    	Black=8      Strong:       	---       	Black=1} 1/2-1/2

[Event "Nakhchivan Open 2024"]
[Site "Nakhchivan"]
[Date "2024.01.12"]
[Round "5.6"]
[White "Khalilov, Yunis"]
[Black "Gulumov, Muthat"]
[Result "0-1"]
[ECO "B20"]
[WhiteElo "1562"]
[BlackElo "1843"]
[Annotator "NA RC COMBH"]
[PlyCount "60"]
[EventDate "2024.01.11"]
[EventType "swiss"]
[EventCountry "AZE"]
[SourceTitle "playchess.com"]
[Source "ChessBase"]
[SourceQuality "1"]
[TimeControl "5400+30"]

1. e4 {[%emt 0:00:04]} c5 {[%emt 0:00:04]} 2. c4 {[%emt 0:00:11]} Nc6 {[%emt 0:00:03]} 3. Nf3 {[%emt 0:00:13]} e6 {[%emt 0:00:16]} 4. Nc3 {[%emt 0:00:12]} Nf6 {[%emt 0:00:07]} 5. Be2 {[%emt 0:00:47]} d5 {[%emt 0:00:38]} 6. exd5 {[%emt 0:02:34]} exd5 {[%emt 0:00:01]} 7. cxd5 {[%emt 0:00:22]} Nxd5 {[%emt 0:00:07]} 8. d4 {[%emt 0:01:56]} cxd4 {[%emt 0:01:09]} 9. Nxd4 {[%emt 0:02:34]} Bb4 {[%emt 0:00:17]} 10. Nxc6 {[%emt 0:00:56]} bxc6 {[%emt 0:00:36]} 11. O-O {[%emt 0:01:28]} O-O {[%emt 0:01:56]} 12. Nxd5 {[%emt 0:00:57]} cxd5 {[%emt 0:01:16]} 13. Qb3 {[%emt 0:02:01]} Rb8 {[%emt 0:00:49]} 14. a3 {[%emt 0:00:18]} Bd6 {[%emt 0:00:24]} 15. Qd3 {[%emt 0:03:55]} Be6 {[%emt 0:04:09]} 16. b4 {[%emt 0:08:27]} Qh4 {[%emt 0:05:10]} 17. g3 {[%emt 0:01:36]} Qf6 {[%emt 0:00:18]} 18. Bd2 {[%emt 0:01:39]} Rbd8 {[%emt 0:01:51]} 19. Be3 {[%emt 0:01:45]} Be5 {[%emt 0:00:47]} 20. Rad1 {[%emt 0:03:44]} d4 {[%emt 0:00:53]} 21. Bc1 {[%emt 0:01:31]} Rc8 {[%emt 0:02:25]} 22. f4 {[%emt 0:02:36]} Bc7 {[%emt 0:00:13]} 23. f5 {[%emt 0:02:29]} Bc4 {[%emt 0:00:53]} 24. Qxc4 {[%emt 0:03:18]} Bb6 {[%emt 0:00:17]} 25. Qd3 {[%emt 0:00:02]} Rc3 {[%emt 0:00:07]} 26. Qd2 {[%emt 0:00:19]} Rc2 {[%emt 0:00:10]} 27. Qg5 {[%emt 0:02:45]} d3+ {[%emt 0:00:34]} 28. Rf2 {[%emt 0:00:32]} Rxe2 {[%emt 0:00:48]} 29. Rdf1 {[%emt 0:00:32]} Qxg5 {[%emt 0:00:11]} 30. Bxg5 {[%emt 0:00:11]} d2 {[%emt 0:00:02]} 0-1

[Event "Nakhchivan Open 2024"]
[Site "Nakhchivan"]
[Date "2024.01.13"]
[Round "6.1"]
[White "Gasimov, Parviz"]
[Black "Baghirov, Mahammad"]
[Result "1-0"]
[ECO "B04"]
[WhiteElo "2362"]
[BlackElo "1621"]
[Annotator "RC"]
[PlyCount "53"]
[EventDate "2024.01.11"]
[EventType "swiss"]
[EventCountry "AZE"]
[SourceTitle "playchess.com"]
[Source "ChessBase"]
[SourceQuality "1"]
[TimeControl "5400+30"]

1. e4 {[%emt 0:02:58]} Nf6 {[%emt 0:00:35]} 2. e5 {[%emt 0:00:34]} Nd5 {[%emt 0:00:28]} 3. d4 {[%emt 0:00:03]} d6 {[%emt 0:00:30]} 4. Nf3 {[%emt 0:02:07]} g6 {[%emt 0:00:18]} 5. Bc4 {[%emt 0:01:12]} Nb6 {[%emt 0:00:02]} 6. Bb3 {[%emt 0:01:10]} Bg7 {[%emt 0:00:07]} 7. O-O {[%emt 0:02:41]} O-O {[%emt 0:00:07]} 8. h3 {[%emt 0:04:20]} Nc6 {[%emt 0:02:36]} 9. Qe2 {[%emt 0:19:20]} dxe5 {[%emt 0:03:06]} 10. dxe5 {[%emt 0:00:19]} Nd4 {[%emt 0:00:44]} 11. Nxd4 {[%emt 0:00:05]} Qxd4 {[%emt 0:00:02]} 12. Re1 {[%emt 0:00:13]} Be6 {[%emt 0:02:41]} 13. Nd2 {[%emt 0:04:43]} Bxb3 {[%emt 0:03:28]} 14. axb3 {[%emt 0:00:33]} e6 {[%emt 0:02:21]} 15. Nf3 {[%emt 0:07:57]} Qd7 {[%emt 0:01:05]} 16. Qe4 {[%emt 0:12:02]} Nd5 {[%emt 0:04:22]} 17. Bd2 {[%emt 0:04:31]} c5 {[%emt 0:01:55]} 18. Rad1 {[%emt 0:01:57]} Qc6 {[%emt 0:00:55]} 19. Qh4 {[%emt 0:02:31]} Rae8 {[%emt 0:00:41]} 20. Bh6 {[%emt 0:04:20]} f6 {[%emt 0:02:39]} 21. Bxg7 {[%emt 0:03:08]} Kxg7 {[%emt 0:00:02]} 22. c4 {[%emt 0:00:45]} Ne7 {[%emt 0:00:34]} 23. Rd6 {[%emt 0:03:07]} Qc8 {[%emt 0:01:00]} 24. exf6+ {[%emt 0:03:20]} Rxf6 {[%emt 0:00:02]} 25. Ng5 {[%emt 0:00:41]} Nf5 {[%emt 0:01:29]} 26. Qxh7+ {[%emt 0:01:06]} Kf8 {[%emt 0:00:01]} 27. Rd7 {[%emt 0:00:54]} 1-0

[Event "Nakhchivan Open 2024"]
[Site "Nakhchivan"]
[Date "2024.01.13"]
[Round "6.2"]
[White "Israilov, Agil"]
[Black "Hasanzade, Toghrul"]
[Result "1/2-1/2"]
[ECO "B45"]
[WhiteElo "2114"]
[BlackElo "2329"]
[Annotator "RC"]
[PlyCount "51"]
[EventDate "2024.01.11"]
[EventType "swiss"]
[EventCountry "AZE"]
[SourceTitle "playchess.com"]
[Source "ChessBase"]
[SourceQuality "1"]
[TimeControl "5400+30"]

1. e4 {[%emt 0:00:02]} c5 {[%emt 0:00:27]} 2. Nf3 {[%emt 0:00:08]} e6 {[%emt 0:01:50]} 3. d4 {[%emt 0:00:07]} cxd4 {[%emt 0:00:05]} 4. Nxd4 {[%emt 0:00:03]} Nc6 {[%emt 0:00:06]} 5. Nc3 {[%emt 0:00:10]} Nf6 {[%emt 0:00:08]} 6. Ndb5 {[%emt 0:02:09]} Bc5 {[%emt 0:01:14]} 7. Bf4 {[%emt 0:11:43]} O-O {[%emt 0:00:19]} 8. Bc7 {[%emt 0:03:29]} Qe7 {[%emt 0:00:10]} 9. Bd6 {[%emt 0:00:08]} Bxd6 {[%emt 0:00:05]} 10. Qxd6 {[%emt 0:00:06]} Qd8 {[%emt 0:00:05]} 11. Nc7 {[%emt 0:07:29]} Rb8 {[%emt 0:04:47]} 12. Be2 {[%emt 0:13:45]} b5 {[%emt 0:07:05]} 13. e5 {[%emt 0:00:36]} b4 {[%emt 0:18:41]} 14. exf6 {[%emt 0:00:06]} bxc3 {[%emt 0:00:03]} 15. fxg7 {[%emt 0:00:04]} Kxg7 {[%emt 0:00:07]} 16. Qg3+ {[%emt 0:00:06]} Kh8 {[%emt 0:00:28]} 17. Qxc3+ {[%emt 0:00:04]} f6 {[%emt 0:04:37]} 18. Nb5 {[%emt 0:04:52]} Qb6 {[%emt 0:10:31]} 19. O-O-O {[%emt 0:09:06]} Ba6 {[%emt 0:10:06]} 20. Rxd7 {[%emt 0:30:28]} Ne5 {[%emt 0:11:48]} 21. Rxh7+ {[%emt 0:03:42]} Kxh7 {[%emt 0:00:44]} 22. Qh3+ {[%emt 0:00:07]} Kg7 {[%emt 0:00:51]} 23. Qg3+ {[%emt 0:00:05]} Ng6 {[%emt 0:05:03]} 24. Bh5 {[%emt 0:00:27]} Rb7 {[%emt 0:03:06]} 25. Qxg6+ {[%emt 0:02:52]} Kh8 {[%emt 0:00:09]} 26. Bf3 {[%emt 0:00:52]} 1/2-1/2

[Event "Nakhchivan Open 2024"]
[Site "Nakhchivan"]
[Date "2024.01.13"]
[Round "6.3"]
[White "Ahmadov, Fariz"]
[Black "Karimov, Hasan"]
[Result "1-0"]
[ECO "B06"]
[WhiteElo "2193"]
[BlackElo "1271"]
[Annotator "RC"]
[PlyCount "47"]
[EventDate "2024.01.11"]
[EventType "swiss"]
[EventCountry "AZE"]
[SourceTitle "playchess.com"]
[Source "ChessBase"]
[SourceQuality "1"]
[TimeControl "5400+30"]

1. d4 {[%emt 0:00:32]} g6 {[%emt 0:00:08]} 2. e4 {[%emt 0:00:43]} Bg7 {[%emt 0:00:23]} 3. h4 {[%emt 0:00:26]} d6 {[%emt 0:01:19]} 4. h5 {[%emt 0:00:16]} e5 {[%emt 0:02:11]} 5. h6 {[%emt 0:00:51]} Bf6 {[%emt 0:00:27]} 6. d5 {[%emt 0:00:47]} c6 {[%emt 0:01:27]} 7. c4 {[%emt 0:00:11]} Bg5 {[%emt 0:02:42]} 8. Nc3 {[%emt 0:01:03]} Bxc1 {[%emt 0:04:26]} 9. Qxc1 {[%emt 0:00:05]} Nd7 {[%emt 0:01:18]} 10. Qd2 {[%emt 0:00:30]} c5 11. O-O-O {[%emt 0:01:15]} a6 {[%emt 0:05:58]} 12. g3 {[%emt 0:00:17]} Nb6 {[%emt 0:00:35]} 13. f4 {[%emt 0:00:27]} Bg4 {[%emt 0:03:13]} 14. Re1 {[%emt 0:00:18]} f6 {[%emt 0:01:25]} 15. Nd1 {[%emt 0:01:31]} Qd7 {[%emt 0:01:04]} 16. Ne3 {[%emt 0:00:52]} O-O-O {[%emt 0:02:52]} 17. Nxg4 {[%emt 0:00:19]} Qa4 {[%emt 0:01:11]} 18. b3 {[%emt 0:00:33]} Qa3+ {[%emt 0:00:49]} 19. Qb2 {[%emt 0:00:05]} Qb4 {[%emt 0:00:26]} 20. Rd1 {[%emt 0:00:10]} Nd7 {[%emt 0:02:52]} 21. Ne3 {[%emt 0:00:27]} Ne7 {[%emt 0:00:48]} 22. Bh3 {[%emt 0:00:07]} Rhf8 {[%emt 0:02:32]} 23. Bxd7+ {[%emt 0:00:32]} Rxd7 {[%emt 0:00:36]} 24. Nf3 {[%emt 0:00:03]} 1-0